Cogmind - Beta 10.1 @@@ ROGUE MODE // 2020.10.18 @ 16:36:53 Player: Shamgod Result: Self-destructed Performance ------------- Evolutions (2) 1000 Regions Visited (3) 600 Robots Destroyed (66) 330 Value Destroyed (1211) 1211 Prototype IDs (0) 0 Alien Tech Used (0) 0 Bonus (20) 20 TOTAL SCORE: 3161 Bonus ------- High Alert Combat Kills 20 Cogmind --------- Core Integrity 518/550 Matter 46/300 Energy 250/250 System Corruption 0% Temperature Cool (0) Movement Core (800) Ox15 Location -8/Materials Parts ------- > --- POWER (1) -------- Ion Engine > --- PROPULSION (4) --- Xenon Bombardment Thruster Xenon Bombardment Thruster Xenon Bombardment Thruster Xenon Bombardment Thruster > --- UTILITY (4) ------ Large Storage Unit Large Storage Unit Improved Sensor Array Light Armor Plating > --- WEAPON (2) ------- Beam Rifle Heavy Assault Rifle > --- INVENTORY (16) --- Light Ion Engine Wheel Large Storage Unit Weight Redist. System Signal Interpreter Advanced Terrain Scanner Terrain Scan Processor Spread Laser Spread Laser Spread Laser Spread Laser Light Assault Rifle Heavy Assault Rifle Grenade Launcher Grenade Launcher Datajack Peak State ------------ > --- POWER ------------ Ion Engine > --- PROPULSION ------- Xenon Bombardment Thruster Xenon Bombardment Thruster Xenon Bombardment Thruster Xenon Bombardment Thruster > --- UTILITY ---------- Large Storage Unit Large Storage Unit Improved Sensor Array Light Armor Plating > --- WEAPON ----------- Beam Rifle Heavy Assault Rifle > --- INVENTORY -------- Light Ion Engine Wheel Medium Storage Unit Weight Redist. System Signal Interpreter Advanced Terrain Scanner Terrain Scan Processor Spread Laser Spread Laser Spread Laser Spread Laser Light Assault Rifle Heavy Assault Rifle Grenade Launcher Grenade Launcher Datajack [Rating: 28] Favorites ----------- Power Ion Engine Engine Ion Engine Propulsion Wheel Treads Light Treads Wheel Wheel Hover Unit Improved Hover Unit Flight Unit Xenon Bombardment Thruster Utility Large Storage Unit Device Advanced Terrain Scanner Storage Large Storage Unit Processor Melee Analysis Suite Protection Light Armor Plating Weapon Heavy Assault Rifle Energy Gun Beam Rifle Energy Cannon Beam Cannon Ballistic Gun Heavy Assault Rifle Launcher Grenade Launcher Impact Weapon Flail Special Melee Weapon Datajack Build | -11 -10 -9 -8 ------- Run | Scr Mat Mat Mat Slots Evolved 4 | . . 2 2 Power . | . . . . Propulsion 2 | . . 1 1 Utility 2 | . . 1 1 Weapon . | . . . . Parts Attached 77 | 9 19 42 7 Power 7 | 1 3 3 . Engine 7 | 1 3 3 . Core . | . . . . Reactor . | . . . . Propulsion 27 | 4 5 14 4 Treads 8 | . 2 6 . Leg . | . . . . Wheel 12 | 4 3 5 . Hover 3 | . . 3 . Flight 4 | . . . 4 Utility 15 | 2 6 4 3 Device 3 | . . 3 . Storage 10 | 2 6 . 2 Processor 1 | . . 1 . Hackware . | . . . . Protection 1 | . . . 1 Artifact . | . . . . Weapon 28 | 2 5 21 . Energy Gun 7 | 1 1 5 . Energy Cannon 1 | . 1 . . Ballistic Gun 13 | 1 1 11 . Ballistic Cannon . | . . . . Launcher 4 | . 1 3 . Special Weapon . | . . . . Impact Weapon 2 | . . 2 . Slashing Weapon . | . . . . Piercing Weapon . | . . . . Special Melee Weapon 1 | . 1 . . Unidentified Prototypes . | . . . . Parts Lost 19 | . 3 16 . Power 1 | . . 1 . Propulsion 9 | . 1 8 . Utility . | . . . . Weapon 9 | . 2 7 . Highest Loss Streak 5 | . 2 5 . Average Slot Usage (%) 94 | . 98 90 95 Engine 10 | . 14 9 9 Treads 11 | . 12 11 9 Wheel 13 | . 14 14 4 Flight 2 | . . . 18 Device 6 | . . 9 9 Storage 23 | . 28 22 18 Protection 1 | . . . 9 Energy Gun 10 | . 13 8 9 Ballistic Gun 8 | . 6 8 9 Launcher 2 | . 3 2 . Naked Turns . | . . . . Heaviest Build 50 | 17 50 46 47 Greatest Support 40 | 26 20 40 28 Greatest Overweight (x) 15 | . 4 11 15 Average Overweight (x) 2 | . 2 2 3 Largest Inventory Capacity 18 | 8 18 16 16 Average Capacity 14 | 6 12 16 16 Most Carried 16 | 8 16 16 16 Average Carried 13 | 5 11 14 15 Final Capacity 16 | 8 16 16 16 Final Carried 16 | 8 16 16 16 Class Distribution -------------------- 59% | Mutant 40% | Scavenger-Mutant Dominant Class ---------------- Mutant | -10/Materials Scavenger-Mutant | -9/Materials Mutant | -8/Materials Resources | -11 -10 -9 -8 ----------- Run | Scr Mat Mat Mat Matter Collected 1132 | 302 175 655 . Remotely . | . . . . Salvage Created 1932 | 146 471 1315 . Parts 126 | 12 35 79 . Haulers Intercepted 2 | . 1 1 . Recyclers Shooed 2 | . 1 1 . Parts Field Recycled . | . . . . Retrieved Matter . | . . . . Parts Self-Destructed . | . . . . Prevented . | . . . . Kills | -11 -10 -9 -8 ------- Run | Scr Mat Mat Mat Combat Hostiles Destroyed 36 | . 9 27 . Guns 22 | . 6 16 . Cannons 2 | . 2 . . AOE 11 | . 1 10 . Classes Destroyed 10 | 2 6 2 . Worker 10 | . 4 6 . Builder 5 | . 1 4 . Tunneler 3 | 3 . . . Hauler 2 | . 1 1 . Recycler 6 | 1 2 3 . Watcher 4 | . 2 2 . Swarmer 12 | . 6 6 . Grunt 15 | . 3 12 . Brawler 3 | . . 3 . Sentry 6 | . . 6 . Best Kill Streak 9 | 2 5 9 . Combat Bots Only 4 | . 4 4 . Max Kills in Single Turn 3 | 1 2 3 . Gunslinging . | . . . . Exploded 2 | . 1 2 . Melee . | . . . . Uniques/NPCs Destroyed . | . . . . Combat | -11 -10 -9 -8 -------- Run | Scr Mat Mat Mat Damage Taken 2462 | . 628 1715 119 Core 488 | . 92 364 32 Absorbed by Shields . | . . . . Core Remaining (%) 57 | 100 63 9 . Volleys Fired 166 | 14 44 104 4 Largest 2 | 2 2 2 2 Hottest 100 | 60 100 95 79 Shots Fired 274 | 18 68 180 8 Gun 249 | 18 55 168 8 Cannon 8 | . 8 . . Launcher 17 | . 5 12 . Special . | . . . . Kinetic 111 | 4 11 92 4 Thermal 115 | . 35 76 4 Explosive 17 | . 5 12 . Electromagnetic 31 | 14 17 . . Robot Hit Streak 16 | 4 5 16 5 Robot Miss Streak 5 | 2 3 5 3 Penetration Max . | . . . . Secondary Targets 1 | . . 1 . Max Gunslinging Chain 1 | . . 1 . Shots Hit Robots 192 | 12 41 135 4 Core Hits 98 | 5 26 67 . Critical Hits . | . . . . Critical Kills . | . . . . Critical Parts Destroyed . | . . . . Melee Attacks 10 | . 3 7 . Impact 7 | . . 7 . Slashing . | . . . . Piercing . | . . . . Sneak Attacks 1 | . . 1 . Combat Hostiles . | . . . . Follow-up Attacks . | . . . . Damage Inflicted 3692 | 138 989 2520 45 Guns 2248 | 138 397 1668 45 Cannons 52 | . 52 . . Explosions 1248 | . 540 708 . Melee 144 | . . 144 . Ramming . | . . . . Kinetic 978 | 22 46 880 30 Thermal 1322 | . 519 788 15 Explosive 994 | . 286 708 . Electromagnetic 254 | 116 138 . . Impact 144 | . . 144 . Slashing . | . . . . Piercing . | . . . . Highest Corruption 6 | . . 6 . Average Corruption 5 | . . 5 . Corruption Purged . | . . . . Effects 18 | . . 18 . Message Errors 3 | . . 3 . Matter Fused 3 | . . 3 . Heat Flow Errors 2 | . . 2 . Parts Rejected 1 | . . 1 . Data Loss (minor) 1 | . . 1 . Targeting Errors 7 | . . 7 . Weapon Failures 1 | . . 1 . Overload Shots . | . . . . Overflow Damage 213 | . 155 58 . Projectiles . | . . . . Explosions 172 | . 155 17 . Melee 41 | . . 41 . Knockbacks 1 | . . 1 . Impact 1 | . . 1 . Kinetic . | . . . . Secondary . | . . . . Self-Inflicted Damage 366 | . 320 46 . Shots 8 | . 6 2 . Rammed . | . . . . Targets Rammed . | . . . . Kicked . | . . . . Crushed . | . . . . Highest Temperature 169 | . 153 169 33 Average Temperature 36 | . 41 35 12 Received Heat Transfer 579 | . 93 414 72 Siege Activations . | . . . . Robots Corrupted 1 | . 1 . . Combat Hostiles . | . . . . Parts Fried 5 | . 3 2 . Impact Corruptions 2 | . . 2 . Robots Melted . | . . . . Combat Hostiles . | . . . . Parts Melted 4 | . 1 3 . Heat Transferred 3144 | . 1140 1967 37 Parts Sabotaged . | . . . . Parts Stolen . | . . . . Parts Stripped . | . . . . Power Chain Reactions 3 | . 3 . . Missiles Intercepted . | . . . . Alert | -11 -10 -9 -8 ------- Run | Scr Mat Mat Mat Peak Influence 457 | 20 307 457 208 Initial 193 | . 13 73 193 Average 211 | 6 132 283 203 Maximum Alert Level 2 | . 1 2 1 Low Security (%) 45 | 100 80 22 28 Level 1 46 | . 19 62 71 Level 2 8 | . . 15 . Level 3 . | . . . . Level 4 . | . . . . Level 5 . | . . . . High Security . | . . . . Max Security . | . . . . Squads Dispatched 6 | . 1 4 1 Investigation 4 | . . 3 1 Extermination . | . . . . Reinforcement 2 | . 1 1 . Assault . | . . . . Garrison . | . . . . Intercept . | . . . . Construction Impeded 1 | . . 1 . Haulers Reinforced . | . . . . Stealth | -11 -10 -9 -8 --------- Run | Scr Mat Mat Mat Distress Signals 3 | . . 2 1 Communications Jammed . | . . . . Distress Signals . | . . . . Times Spotted 55 | . 19 31 5 Peak Tracking Total 4 | . 4 4 3 Tactical Retreats 4 | . 3 1 . Traps | -11 -10 -9 -8 ------- Run | Scr Mat Mat Mat Traps Triggered 2 | . . 1 1 Indirectly . | . . . . Trap Hack Attempts . | . . . . Triggered . | . . . . Disarmed . | . . . . Reprogrammed . | . . . . Reused . | . . . . Traps Extracted . | . . . . Installed . | . . . . Triggered 1 | . 1 . . Machines | -11 -10 -9 -8 ---------- Run | Scr Mat Mat Mat Machines Disabled 3 | . 3 . . Max in Single Turn 2 | . 2 . . Machines Sabotaged . | . . . . Garrisons Compromised . | . . . . Overloaded Fab Kills . | . . . . Fab Network Shutdowns . | . . . . Hacking | -11 -10 -9 -8 --------- Run | Scr Mat Mat Mat Machines Accessed 8 | . 2 6 . Terminals 7 | . 1 6 . Fabricators . | . . . . Repair Stations 1 | . 1 . . Recycling Units . | . . . . Scanalyzers . | . . . . Garrison Access . | . . . . Total Hacks 23 | . 5 18 . Successful 15 | . 3 12 . Failed 8 | . 2 6 . Catastrophic 1 | . 1 . . Database Lockouts . | . . . . Manual 10 | . 3 7 . Terminals 21 | . 3 18 . Fabricators . | . . . . Repair Stations 2 | . 2 . . Recycling Units . | . . . . Scanalyzers . | . . . . Garrison Access . | . . . . Terminal Hacks 10 | . . 10 . Robot Analysis 2 | . . 2 . Branch Access Points 1 | . . 1 . Terminal Index 1 | . . 1 . Alert Level 2 | . . 2 . Dispatch Records 1 | . . 1 . Investigation Status 1 | . . 1 . Assault Status 1 | . . 1 . Recall Investigation 1 | . . 1 . Fabricator Hacks . | . . . . Repair Station Hacks 2 | . 2 . . Scan Component 1 | . 1 . . Repair 1 | . 1 . . Recycling Unit Hacks . | . . . . Scanalyzer . | . . . . Garrison Access Hacks . | . . . . Unauthorized Hacks 3 | . 1 2 . Terminals 3 | . 1 2 . Botnet 2 | . 1 1 . Search 1 | . . 1 . Fabricators . | . . . . Repair Stations . | . . . . Recycling Units . | . . . . Scanalyzers . | . . . . Garrison Access . | . . . . Data Cores Recovered . | . . . . Used . | . . . . Hacking Detections 5 | . 1 4 . Full Trace Events 3 | . . 3 . Feedback Events . | . . . . Feedback Blocked . | . . . . Robot Schematics Acquired . | . . . . Robots Built . | . . . . Matter . | . . . . Time . | . . . . Total Robot Build Rating . | . . . . Part Schematics Acquired . | . . . . Parts Built . | . . . . Matter . | . . . . Time . | . . . . Total Part Build Rating . | . . . . Parts Repaired 1 | . 1 . . Time 26 | . 26 . . Parts Recycled . | . . . . Recycled Matter . | . . . . Retrieved Matter . | . . . . Retrieved Components . | . . . . Parts Scanalyzed . | . . . . Part Schematics Acquired . | . . . . Parts Damaged . | . . . . Bothacking | -11 -10 -9 -8 ------------ Run | Scr Mat Mat Mat Used RIF Installer . | . . . . Robots Hacked 1 | . 1 . . Non-combat . | . . . . Combat 1 | . 1 . . Robot Hacks Applied 1 | . 1 . . parse_system 1 | . 1 . . Relay Couplers Released . | . . . . Robots Rewired . | . . . . Allies Hacked . | . . . . Hacks Repelled . | . . . . Allies | -11 -10 -9 -8 -------- Run | Scr Mat Mat Mat Total Allies . | . . . . Largest Group . | . . . . Highest-Rated Group . | . . . . Highest-Rated Ally . | . . . . Total Orders . | . . . . Ally Attacks . | . . . . Total Damage . | . . . . Kills . | . . . . Allies Corrupted . | . . . . Allies Melted . | . . . . Intel | -11 -10 -9 -8 ------- Run | Scr Mat Mat Mat Robot Analysis Total 2 | . . 2 . Derelict Logs Recovered . | . . . . Drone Launches . | . . . . Drone Recoveries . | . . . . Exploration | -11 -10 -9 -8 ------------- Run | Scr Mat Mat Mat Turns Passed 2112 | 110 681 1097 224 Spaces Moved 1082 | 66 435 475 106 Core 12 | 2 . 4 6 Treads 186 | . 15 171 . Legs . | . . . . Wheels 851 | 64 420 300 67 Hover . | . . . . Flight 33 | . . . 33 Fastest Speed 50 | 50 80 100 111 Average Speed 124 | 85 107 138 162 Slowest Speed 800 | 100 200 600 800 Overloaded Moves . | . . . . Propulsion Burnouts . | . . . . Robots Hopped . | . . . . Cave-ins Triggered . | . . . . Exploration Rate (%) 31 | 5 59 51 11 Regions Visited 3 Branch Regions . Pre-discovered Areas . | . . . . Known Exits Taken . | . . . . Unknown Exits Taken 3 | 1 1 1 . Scrap Searched . | . . . . Spaces Dug . | . . . . Terrain Destroyed 130 | . 66 64 . Melee . | . . . . Projectile . | . . . . AOE 130 | . 66 64 . Terrain Rammed . | . . . . Walls Destroyed . | . . . . Machines Disabled . | . . . . Actions | -11 -10 -9 -8 --------- Run | Scr Mat Mat Mat Total 1553 | 98 580 725 150 Wait 125 | . 47 50 28 Move 1079 | 65 434 474 106 Hop . | . . . . Pick Up 51 | 8 18 25 . Fast Attach 22 | 7 2 9 4 Attach 18 | . 2 15 1 Detach 5 | . . 4 1 Swap 37 | 2 15 18 2 Drop 41 | 2 15 20 4 Fire 166 | 14 44 104 4 Melee 9 | . 3 6 . Ram . | . . . . Kick . | . . . . Crush . | . . . . Escape Stasis . | . . . . Rewire . | . . . . Trap . | . . . . Miscellaneous . | . . . . Route ------- -11/Scrapyard -10/Materials (discovered 3 exits: *Mat / [*Min x2]) -9/Materials (discovered 2 exits: [*Mat] / Min) -8/Materials History --------- Turn | Location | Event 32 | -11/Scrapyard | Discovered new exit (range 16) 111 | -11/Scrapyard | Entered Materials 252 | -10/Materials | Discovered new exit (range 13) 304 | -10/Materials | Build established: Mutant 347 | -10/Materials | Repaired Wheel 483 | -10/Materials | Discovered new exit (range 10) 696 | -10/Materials | Discovered new exit (range 10) 792 | -10/Materials | Entered another Materials area 792 | -9/Materials | Evolved 2 slots: Propulsion x1, Utility x1 1338 | -9/Materials | Build established: Scavenger-Mutant 1453 | -9/Materials | Lost 3 parts (2n1w) 1548 | -9/Materials | Core integrity fell below 50% 1565 | -9/Materials | Identified exit to Mines 1616 | -9/Materials | Core integrity fell below 20% 1649 | -9/Materials | Lost 5 parts (1p2n2w) 1871 | -9/Materials | Discovered new exit (range 16) 1889 | -9/Materials | Entered another Materials area 1889 | -8/Materials | Evolved 2 slots: Propulsion x1, Utility x1 2113 | -8/Materials | Self-destructed Last Messages --------------- 01841_ R-06 Scavenger destroyed. 01850_ U-05 Engineer lays Concrete. 01853_ U-05 Engineer destroyed. 01858_ Acquired Wheel. 01861_ R-06 Scavenger collects Heat Sink. 01868_ R-06 Scavenger collects Ion Engine. 01871_ EXIT=FOUND 01876_ R-06 Scavenger collects Terrain Scanner. PARAMETERS=PROPULSION_1,UTILITY_1 LOCATION=UNKNOWN GOAL=ESCAPE 01983_ Triggered Alarm Trap. 01983_ An alarm sounds. 01983_ ALERT: Alarm triggered, dispatching investigation squad. 01992_ Acquired Xenon Bombardment Thruster. 02001_ Dropped Lgt. Treads. 02005_ Acquired Xenon Bombardment Thruster. 02041_ Dropped Med. Storage Unit. 02044_ Dropped Lrg. Storage Unit. 02088_ W-25 Informer sends out distress signal. Map ----- +----------------------------------------------------+ | | | | | | | | | | | | | | | | | | | | | | | | | | | | | ?????????????????????????????????????? | | ?????????????????????????????????????? | | ???????????????????????#######???????? | | ???????????????????????# #???????? | | ????????????????????#### #???????? | | ???????????????????##!! ########???? | | ???????????????????#! # ]![ #???? | | ???????????????????#! + ]![ #???? | | ???????????????????#! # ![ #???? | | ???????????????????#! # #???? | | ???????????????????##!! # ! #???? | | ????????????????????#### @# #???? | | ?########????###########g ########???? | | ?# #?#### g #??????????? | | ?# """" #?# #??????????? | | ?# """" #?# ##+####### ###????????? | | ?# """" ### # ? #?# #????????? | | ?# + # #?#!!= !!#????????? | | ?# # # " #?#!!= !!#????????? | | ?####+### # "" #?########????????? | | ????# + "" #?????????????????? | | ??###+##### # """ #?????????????????? | | ??# ## # "" #?????????????????? | | ### """ ## # """ #?????????????????? | | + """ ## # """ #?????????????????? | | ### """ #? # """ #?????????????????? | | ??# #? # " #?????????????????? | | ??# #? # #?????????????????? | | ??########? # #?????????????????? | | ???????????+########?????????????????? | | ??????????? ?????????????????????????? | | ???????????"?????????????????????????? | | ?????????????????????????????????????? | | ?????????????????????????????????????? | | ?????????????????????????????????????? | | ?????????????????????????????????????? | +----------------------------------------------------+ Best States ------------- Heat Dissipation 31 Energy Generation 12 Energy Capacity 265 Matter Stores 300 Matter Capacity 300 Sight Range 16 Robot Scan Range 13 Terrain Scan Range 20 Terrain Scan Density 10 Armor Coverage 150 Evasion (%) 44 Melee Accuracy 5 Recoil Reduction 2 Item Schematics ----------------- None Robot Schematics ------------------ None Fabricated ------------ Nothing Alien Tech Used ----------------- None Achievements -------------- None Challenges ------------ None Game ------ Seed DisruptionImprovedScrap Manual? 0 Play Time 00:52:04 Cumulative 14.7 hours Start 2020.10.18 @ 15:24:34 End 2020.10.18 @ 16:36:53 Sessions 1 Manual Loads 0 Difficulty Rogue Special Mode None Game No. 22 Rogue 22 Adventurer 0 Explorer 0 Win Type - Total 0 Types 0/0/0/0/0/0/0/0/0 Lore% 13 Gallery% 17 Achievement% 14 Wizard Run 0 Options --------- ASCII 0 Keyboard 1 Movement Numpad Keybinds 0 Fullscreen 2 Font 16/Dina Map View 76x50 Tactical HUD 1 Map Filters NONE Filters NONE Steam 1 RUN: f9ac50f5-0f25-4bfb-844d-911fb2c11e8e